Cogmind - Beta 13 @@@ ROGUE MODE // 2024.04.06 @ 18:53:27 Player: Razor Feather Result: Self-destructed Performance ------------- Evolutions (1) 500 Regions Visited (2) 400 Robots Destroyed (26) 130 Value Destroyed (419) 419 Prototype IDs (4) 80 Alien Tech Used (0) 0 Bonus (0) 0 TOTAL SCORE: 1529 Bonus ------- None Cogmind --------- Core Integrity 41/400 Matter 235/300 Energy 100/100 System Corruption 0% Temperature Cool (0) Movement Core (400) Ox7 Location -9/Materials Parts ------- > --- POWER (1) -------- (None) > --- PROPULSION (2) --- (None) > --- UTILITY (3) ------ Large Storage Unit > --- WEAPON (3) ------- Katana > --- INVENTORY (15) --- Light Ion Engine Light Deuterium Engine Light Deuterium Engine Heat Sink Improved Heat Sink Large Storage Unit High-capacity Battery (250) High-capacity Matter Pod (197) Terrain Scan Processor Targeting Computer Targeting Computer Assault Rifle Mining Laser Hammer Katana Peak State ------------ > --- POWER ------------ Ion Engine > --- PROPULSION ------- (None) > --- UTILITY ---------- Large Storage Unit Terrain Scanner Medium Armor Plating > --- WEAPON ----------- Light Assault Rifle Light Assault Rifle Katana > --- INVENTORY -------- Light Ion Engine Light Deuterium Engine Heat Sink Improved Heat Sink Large Storage Unit High-capacity Battery High-capacity Matter Pod Terrain Scan Processor Targeting Computer Targeting Computer Assault Rifle Mining Laser Hammer Katana [Rating: 12] Favorites ----------- Power Light Nuclear Core Engine Ion Engine Power Core Light Nuclear Core Propulsion Light Treads Treads Light Treads Wheel Compact Wheel Utility Terrain Scanner Device Terrain Scanner Storage Large Storage Unit Protection Medium Armor Plating Weapon Assault Rifle Ballistic Gun Assault Rifle Special Weapon Mining Laser Impact Weapon Hammer Slashing Weapon Katana Build | -11 -10 -9 ------- Run | Yrd Mat Mat Slots Evolved 2 | . . 2 Power . | . . . Propulsion . | . . . Utility 1 | . . 1 Weapon 1 | . . 1 Parts Attached 29 | 7 15 7 Power 4 | 1 3 . Engine 3 | 1 2 . Core 1 | . 1 . Reactor . | . . . Propulsion 4 | 2 2 . Treads 2 | 2 . . Leg . | . . . Wheel 2 | . 2 . Hover . | . . . Flight . | . . . Utility 6 | 2 2 2 Device 2 | 1 1 . Storage 2 | 1 1 . Processor . | . . . Hackware . | . . . Protection 2 | . . 2 Artifact . | . . . Weapon 15 | 2 8 5 Energy Gun . | . . . Energy Cannon . | . . . Ballistic Gun 9 | 2 5 2 Ballistic Cannon . | . . . Launcher . | . . . Special Weapon 3 | . 3 . Impact Weapon 2 | . . 2 Slashing Weapon 1 | . . 1 Piercing Weapon . | . . . Special Melee Weapon . | . . . Unidentified Prototypes . | . . . Parts Lost 15 | . 7 8 Power 3 | . 2 1 Propulsion 4 | . 3 1 Utility 4 | . 1 3 Weapon 4 | . 1 3 Highest Loss Streak 5 | . 3 5 To Critical Strikes . | . . . Average Slot Usage (%) 91 | . 96 75 Engine 5 | . 3 10 Core 7 | . 9 . Treads 14 | . 18 . Wheel 5 | . 6 2 Device 12 | . 13 10 Storage 13 | . 14 11 Protection 1 | . . 9 Ballistic Gun 21 | . 22 20 Special Weapon 4 | . 5 . Impact Weapon 1 | . . 7 Naked Turns . | . . . Heaviest Build 38 | 13 30 38 Greatest Support 40 | 40 40 16 Greatest Overweight (x) 12 | . 1 12 Average Overweight (x) 1 | . . 7 Largest Inventory Capacity 15 | 8 15 15 Average Capacity 13 | 7 12 15 Most Carried 15 | 5 15 15 Average Carried 11 | 3 12 12 Final Capacity 15 | 8 15 15 Final Carried 15 | 5 15 15 Class Distribution -------------------- 98% | Mutant Dominant Class ---------------- Mutant | -10/Materials Mutant | -9/Materials Resources | -11 -10 -9 ----------- Run | Yrd Mat Mat Matter Collected 1059 | 231 771 57 Remotely . | . . . Salvage Created 751 | 73 616 62 Parts 53 | 6 44 3 Haulers Intercepted 2 | . 2 . Recyclers Shooed 1 | . . 1 Parts Field Recycled . | . . . Retrieved Matter . | . . . Parts Self-Destructed . | . . . Prevented . | . . . Kills | -11 -10 -9 ------- Run | Yrd Mat Mat Combat Hostiles Destroyed 13 | . 10 3 Guns 12 | . 10 2 Classes Destroyed 8 | 2 6 . Worker 1 | . 1 . Builder 3 | . 2 1 Tunneler 3 | 1 2 . Hauler 2 | . 2 . Recycler 2 | 1 1 . Watcher 2 | . 2 . Swarmer 6 | . 3 3 Grunt 7 | . 7 . Best Kill Streak 5 | 2 5 2 Combat Bots Only 3 | . 3 2 Max Kills in Single Turn 2 | 1 2 1 Gunslinging 1 | . 1 . Exploded . | . . . Melee . | . . . Uniques/NPCs Destroyed . | . . . Combat | -11 -10 -9 -------- Run | Yrd Mat Mat Hostile Shots Fired 233 | . 77 156 Missed 58 | . 21 37 Damage Taken 2054 | . 952 1102 Core 494 | . 135 359 Absorbed by Shields . | . . . Core Remaining (%) 73 | 100 46 . Volleys Fired 125 | 4 104 17 Largest 2 | 2 2 2 Hottest 100 | 40 100 40 Shots Fired 209 | 8 170 31 Gun 177 | 8 138 31 Cannon . | . . . Launcher . | . . . Special 32 | . 32 . Kinetic 177 | 8 138 31 Thermal 32 | . 32 . Explosive . | . . . Electromagnetic . | . . . Robot Hit Streak 11 | 3 11 3 Robot Miss Streak 3 | 2 3 3 Penetration Max . | . . . Secondary Targets 4 | . 4 . Max Gunslinging Chain 1 | . 1 . Shots Hit Robots 110 | 5 83 22 Core Hits 39 | 3 33 3 Critical Kills 1 | 1 . . Critical Parts Destroyed 2 | . 2 . Critical Strikes 3 | 1 2 . Destroy 3 | 1 2 . Melee Attacks 14 | . . 14 Impact 12 | . . 12 Slashing 2 | . . 2 Piercing . | . . . Sneak Attacks 2 | . . 2 Combat Hostiles . | . . . Follow-up Attacks . | . . . Damage Inflicted 1456 | 58 1049 349 Guns 1257 | 58 1046 153 Cannons . | . . . Explosions . | . . . Melee 196 | . . 196 Ramming 3 | . 3 . Kinetic 1257 | 58 1046 153 Thermal . | . . . Explosive . | . . . Electromagnetic . | . . . Impact 166 | . . 166 Slashing 30 | . . 30 Piercing . | . . . Highest Corruption 11 | . 11 . Average Corruption 11 | . 11 . Corruption Purged . | . . . Corruption Blocked . | . . . Effects 8 | . 8 . Message Errors 1 | . 1 . Matter Fused 2 | . 2 . Heat Flow Errors 1 | . 1 . Data Loss (minor) 1 | . 1 . Data Loss (major) 1 | . 1 . Misdirections 2 | . 2 . Overload Shots . | . . . Overflow Damage 64 | . . 64 Projectiles . | . . . Explosions . | . . . Melee 64 | . . 64 Knockbacks 2 | . . 2 Impact 2 | . . 2 Kinetic . | . . . Secondary . | . . . Self-Inflicted Damage . | . . . Shots . | . . . Rammed 1 | . 1 . Targets Rammed 1 | . 1 . Kicked . | . . . Crushed . | . . . Highest Temperature 252 | . 252 1 Average Temperature 49 | . 49 1 Received Heat Transfer 567 | . 339 228 Effects 1 | . 1 . Interference 1 | . 1 . Siege Activations . | . . . Robots Corrupted . | . . . Combat Hostiles . | . . . Parts Fried 3 | . . 3 Impact Corruptions 4 | . . 4 Robots Melted . | . . . Combat Hostiles . | . . . Parts Melted . | . . . Heat Transferred . | . . . Parts Sabotaged . | . . . Parts Stolen . | . . . Parts Stripped . | . . . Power Chain Reactions . | . . . Alert | -11 -10 -9 ------- Run | Yrd Mat Mat Peak Influence 218 | 10 218 108 Initial 6 | . 6 1 Average 51 | 4 55 50 Maximum Alert Level 1 | . 1 . Low Security (%) 92 | 100 89 100 Level 1 7 | . 10 . Level 2 . | . . . Level 3 . | . . . Level 4 . | . . . Level 5 . | . . . High Security . | . . . Max Security . | . . . Squads Dispatched 2 | . 2 . Investigation 2 | . 2 . Extermination . | . . . Reinforcement . | . . . Assault . | . . . Garrison . | . . . Intercept . | . . . Searches Triggered . | . . . Construction Impeded . | . . . Haulers Reinforced . | . . . Active Scanning Responses . | . . . Cargo Convoy Interrupts . | . . . Stealth | -11 -10 -9 --------- Run | Yrd Mat Mat Distress Signals 2 | . 1 1 Communications Jammed . | . . . Distress Signals . | . . . Times Spotted 40 | . 20 20 Peak Tracking Total 9 | . 4 9 Tactical Retreats 2 | . . 2 Traps | -11 -10 -9 ------- Run | Yrd Mat Mat Traps Triggered 2 | . 2 . Indirectly . | . . . Trap Hack Attempts . | . . . Triggered . | . . . Disarmed . | . . . Reprogrammed . | . . . Reused . | . . . Traps Extracted . | . . . Installed . | . . . Triggered . | . . . Machines | -11 -10 -9 ---------- Run | Yrd Mat Mat Machines Disabled 1 | . 1 . Max in Single Turn 1 | . 1 . Machines Repaired . | . . . Machines Dismantled . | . . . Machines Sabotaged . | . . . Overloaded Fab Kills . | . . . Hacking | -11 -10 -9 --------- Run | Yrd Mat Mat Machines Accessed 4 | . 4 . Terminals 4 | . 4 . Fabricators . | . . . Repair Stations . | . . . Recycling Units . | . . . Scanalyzers . | . . . Garrison Access . | . . . Total Hacks 9 | . 9 . Successful 4 | . 4 . Failed 5 | . 5 . Catastrophic 1 | . 1 . Database Lockouts . | . . . Manual . | . . . Terminals 9 | . 9 . Fabricators . | . . . Repair Stations . | . . . Recycling Units . | . . . Scanalyzers . | . . . Garrison Access . | . . . Terminal Hacks 4 | . 4 . Prototype ID Bank 2 | . 2 . Locate Traps 1 | . 1 . Registered Components 1 | . 1 . Fabricator Hacks . | . . . Repair Station Hacks . | . . . Recycling Unit Hacks . | . . . Scanalyzer . | . . . Garrison Access Hacks . | . . . Unauthorized Hacks . | . . . Terminals . | . . . Fabricators . | . . . Repair Stations . | . . . Recycling Units . | . . . Scanalyzers . | . . . Garrison Access . | . . . Data Cores Recovered . | . . . Used . | . . . Hacking Detections 2 | . 2 . Full Trace Events . | . . . Feedback Events . | . . . Feedback Blocked . | . . . Robot Schematics Acquired . | . . . Robots Built . | . . . Authchips . | . . . Time . | . . . Total Robot Build Rating . | . . . Part Schematics Acquired . | . . . Parts Built . | . . . Authchips . | . . . Time . | . . . Total Part Build Rating . | . . . Parts Repaired . | . . . Time . | . . . Parts Recycled . | . . . Recycled Matter . | . . . Retrieved Matter . | . . . Retrieved Components . | . . . Parts Scanalyzed . | . . . Part Schematics Acquired . | . . . Parts Damaged . | . . . Bothacking | -11 -10 -9 ------------ Run | Yrd Mat Mat Used RIF Installer . | . . . Robots Hacked . | . . . Non-combat . | . . . Combat . | . . . Robot Hacks Applied . | . . . Relay Couplers Released . | . . . Fabnet Peak Effective % . | . . . Robots Rewired . | . . . Allies Hacked . | . . . Hacks Repelled . | . . . Allies | -11 -10 -9 -------- Run | Yrd Mat Mat Total Allies . | . . . Largest Group . | . . . Highest-Rated Group . | . . . Highest-Rated Ally . | . . . Total Orders . | . . . Ally Attacks . | . . . Total Damage . | . . . Kills . | . . . Allies Corrupted . | . . . Allies Melted . | . . . Intel | -11 -10 -9 ------- Run | Yrd Mat Mat Robot Analysis Total . | . . . Derelict Logs Recovered . | . . . Drone Launches . | . . . Drone Recoveries . | . . . Exploration | -11 -10 -9 ------------- Run | Yrd Mat Mat Turns Passed 1835 | 119 1351 365 Spaces Moved 839 | 62 715 62 Core 48 | 10 . 38 Treads 354 | 52 302 . Legs . | . . . Wheels 437 | . 413 24 Hover . | . . . Flight . | . . . Fastest Speed 50 | 50 115 115 Average Speed 158 | 142 135 434 Slowest Speed 650 | 160 240 650 Overloaded Moves . | . . . Propulsion Burnouts . | . . . Robots Hopped . | . . . Cave-ins Triggered 1 | . 1 . Exploration Rate (%) 36 | 5 93 11 Regions Visited 2 Branch Regions . Pre-discovered Areas . | . . . Known Exits Taken . | . . . Unknown Exits Taken 2 | 1 1 . Scrap Searched . | . . . Spaces Dug 29 | . 27 2 Terrain Destroyed 30 | . 28 2 Melee 2 | . . 2 Projectile 28 | . 28 . AOE . | . . . Terrain Rammed . | . . . Walls Destroyed . | . . . Machines Disabled . | . . . Actions | -11 -10 -9 --------- Run | Yrd Mat Mat Total 1052 | 85 862 105 Wait . | . . . Move 837 | 61 714 62 Hop . | . . . Pick Up 35 | 12 19 4 Fast Attach 5 | 1 4 . Attach 14 | 6 3 5 Detach 1 | . . 1 Swap 10 | . 8 2 Drop 10 | 1 9 . Fire 125 | 4 104 17 Melee 14 | . . 14 Ram . | . . . Kick . | . . . Crush 1 | . 1 . Escape Stasis . | . . . Rewire . | . . . Trap . | . . . Miscellaneous . | . . . Route ------- -11/Scrapyard -10/Materials (discovered 5 exits: [*Mat x3] / [*Min x2]) -9/Materials History --------- Turn | Location | Event 23 | -11/Scrapyard | Discovered new exit (range 15) 120 | -11/Scrapyard | Entered Materials 264 | -10/Materials | Discovered new exit (range 10) 302 | -10/Materials | Build established: Mutant 619 | -10/Materials | Discovered new exit (range 4) 1059 | -10/Materials | Discovered new exit (range 16) 1190 | -10/Materials | Discovered new exit (range 7) 1305 | -10/Materials | Crushed by falling debris 1305 | -10/Materials | Core integrity fell below 50% 1305 | -10/Materials | System corruption reached 10% 1336 | -10/Materials | Lost 3 parts (1p2n) 1432 | -10/Materials | Discovered new exit (range 16) 1471 | -10/Materials | Entered another Materials area 1471 | -9/Materials | Evolved 2 slots: Utility x1, Weapon x1 1600 | -9/Materials | Lost 3 parts (1n1u1w) 1826 | -9/Materials | Core integrity fell below 50% 1832 | -9/Materials | Core integrity fell below 20% 1836 | -9/Materials | Self-destructed Last Messages --------------- 01657_ U-05 Engineer system terminally corrupted. 01657_ Welding Torch fried. 01657_ Wheel fried. 01665_ Acquired 22 matter. 01689_ K-01 Serf collects debris. 01717_ Acquired Lgt. Deuterium Engine. 01731_ Acquired Katana. 01747_ Acquired Lgt. Deuterium Engine. 01806_ W-16 Scout sends out distress signal. 01816_ Destroyed Heat Sink. 01817_ Ion Engine destroyed. 01819_ Med. Armor Plating destroyed. 01819_ Terrain Scanner destroyed. 01821_ S-10 Pest destroyed. 01823_ Material Processor disabled. 01826_ Critical hit (Burn: +37). 01826_ Lgt. Assault Rifle destroyed. 01828_ Acquired 19 matter. 01829_ Lgt. Assault Rifle destroyed. 01835_ U-05 Engineer builds a Door. Map ----- +----------------------------------------------------+ | ?????????????????????????????????????????????????? | | ?????????????????????????????????????????????????? | | ?????????????????????????????????????????????????? | | ?????????????????????????????????????????????????? | | ?????????????????????????????????????????????????? | | ?????????????????????????????????????????????????? | | ?????????????????????????????????????????????????? | | ?????????????????????????????????????????????????? | | ?????????????????????????????????????????????????? | | ?????????????????????????????????????????????????? | | ?????????????????????????????????????????????????? | | ?????????????????????????????????????????????????? | | ?????????????????????????????????????????????????? | | ?????????????????????????????????????????????????? | | ????????????????????????????????#????????????????? | | ?????????????????????????????????????????????????? | | ???????????? ???????????????????###?????????????? | | ????????????"" # ???????????#??? ??????????????? | | ?????????????" + ????#######? ""??????????????? | | ???????????????# ##### # """??????????????? | | ???????????????# # """"?????????????? | | ???????????????# + """?????????????? | | ?????????????? # gg u#???????????????????? | | ???????????"???# ##### [ #???????????????????? | | ?????????????? ????#??###g*s##???????????????????? | | ?????????????#?? ??????#@ s#? ??? ?????????????? | | ???????????????????###### ####?????????????????? | | ??????????#?????? ??#!! #????#???????????????? | | ???????????? ?? ???#!! # ???????????????????? | | ?????????????????? ?#// #?????? #????????????? | | ?????????????? ? ???# #???????#??? ????????? | | ???????????????""???# * +??????????? ????????? | | ??????????????""" ?##* s #???? ????# ????????? | | ???????????? """" ###### ########?### ????????? | | ??????????# """ ### #???????? | | ??????????# "Y" #?# #???????? | | ??????????# !! #?# #?#?????? | | ??????????+ !! #?# #???????? | | ??????????? ####### !! #?# #???????? | | ???????????????#??#?# #?# #???????? | | ????????????? ??????# ### ##??????? | | ????????????????????# """" """" ## ######## | | ????????????????????# """" """" ## # | | ????????????????????# """" """" ## # | | ????????????????????# # | | ????????????????????# ## #####"## | | ????????????????????# ####+####??###? | | ????????????????????# ## #?????? | | ????????????????????############+#### """" #?????? | | ??????????????????????????#?# # """" #?????? | +----------------------------------------------------+ Best States ------------- Heat Dissipation 28 Energy Generation 14 Energy Capacity 250 Matter Stores 300 Matter Capacity 300 Sight Range 16 Terrain Scan Range 16 Terrain Scan Density 10 Armor Coverage 225 Evasion (%) 50 Recoil Reduction 2 Item Schematics ----------------- None Robot Schematics ------------------ None Fabricated ------------ Nothing Alien Tech Used ----------------- None Achievements -------------- Unlikely Earthworm Challenges ------------ None Game ------ Seed SmartbombExoskeletonCutter Manual? 0 Play Time 00:20:56 Cumulative 13.7 hours Start 2024.04.06 @ 15:39:36 End 2024.04.06 @ 18:53:27 Sessions 3 Manual Loads 0 Difficulty Rogue Special Mode None Game No. 16 Rogue 16 Adventurer 0 Explorer 0 Win Type - Total 0 Types 0/0/0/0/0/0/0/0/0 Lore% 15 Gallery% 20 Achievement% 17 Wizard Run 0 Options --------- Layout 0 ASCII 0 Keyboard 0 Movement Mouse Keybinds 0 Fullscreen 1 Font 18/SmallcapsGlow Map View 76x50 Zoom Use 0% Tactical HUD 1 Map Filters NONE Filters NONE Steam 1 RUN: 449e9ba0-1aa1-4990-b884-8268292fb12d